bitfinex-derivatives/quotes_ETHF0:USTF0_20240930
["timestamp","ask_amount","ask_price","bid_price","bid_amount"]
[1727727273438,2.32844,2605.9,2605.7,0.38385]
[1727727273647,2.32844,2605.9,2605.5,1.70484]
[1727727273839,2.32844,2605.9,2605.8,0.38385]
[1727727274140,2.32845,2605.9,2605.7,0.38386]
[1727727274341,0.38388,2605.6,2605.5,1.12899]
[1727727274530,1.62388,2605.6,2605.5,0.38389]
[1727727274731,5.46148,2605.6,2605.5,0.38389]
[1727727275332,5.46148,2605.6,2605.4,1.0935]
[1727727275536,0.7353,2605.5,2605.4,1.0935]
[1727727280936,0.7576,2605.7,2605.6,0.38388]
[1727727281136,1.9976,2605.7,2605.6,0.38388]
[1727727281342,5.8352,2605.7,2605.6,0.38388]
[1727727281548,1.24,2605.7,2605.6,0.38388]
[1727727281741,1.24,2605.7,2605.4,0.7096]
[1727727281947,1.24,2605.7,2605.5,0.38388]
[1727727282247,1.24,2605.7,2605.6,0.38388]
[1727727282551,4.4478,2605.8,2605.7,0.38387]
[1727727284150,4.4478,2605.8,2605.6,0.38387]
[1727727284345,4.4478,2605.8,2605.7,0.7032]
[1727727285150,4.83165,2605.8,2605.7,0.7032]
[1727727285447,4.4478,2605.8,2605.7,0.7032]
[1727727285650,3.2078,2605.8,2605.7,0.7032]
[1727727285847,4.4478,2605.8,2605.7,0.7032]
[1727727286350,4.83165,2605.8,2605.7,0.7032]
[1727727286550,4.4478,2605.8,2605.7,0.7032]
[1727727286749,4.83165,2605.8,2605.7,0.7032]
[1727727295248,5.54385,2605.8,2605.7,0.7032]
[1727727300258,0.95967,2605.7,2605.4,0.99417023]
[1727727300451,3.2078,2605.5,2605.4,0.38391]
[1727727300847,3.2078,2605.5,2605.4,1.37808023]
[1727727301056,6.11964,2605.8,2605.4,3.29962408]
[1727727301246,6.11964,2605.8,2605.4,1.71827023]
[1727727301247,1.24,2605.6,2605.4,1.71827023]
[1727727301445,0.38389,2605.5,2605.4,1.71827023]
[1727727301759,1.24,2605.6,2605.4,0.7241]
[1727727301760,1.62389,2605.6,2605.4,0.7241]
[1727727301954,1.24,2605.6,2605.4,2.10217023]
[1727727302154,1.62388,2605.6,2605.4,2.10217023]
[1727727302350,1.24,2605.6,2605.4,2.10217023]
[1727727302655,1.24,2605.6,2605.5,0.38389]
[1727727302953,1.62389,2605.6,2605.4,2.10217023]
[1727727303454,1.24,2605.6,2605.5,0.38389]
[1727727304854,1.24,2605.6,2605.4,1.71827023]
[1727727305158,1.24,2605.6,2605.5,0.38389]
[1727727305847,1.62388,2605.6,2605.4,2.10217023]
[1727727306466,1.62388,2605.6,2605.5,0.38389]
[1727727306759,1.62388,2605.6,2605.4,1.71827023]
[1727727306965,1.24,2605.6,2605.5,0.38389]
[1727727307758,1.62388,2605.6,2605.5,0.99417023]
[1727727308357,1.62388,2605.6,2605.5,1.37806023]
[1727727309458,1.62388,2605.6,2605.5,0.99417023]
[1727727311361,1.62388,2605.6,2605.5,2.96049062]
[1727727311556,1.24,2605.6,2605.5,2.96049062]
[1727727311759,1.62388,2605.6,2605.5,2.96049062]
[1727727311969,1.62388,2605.6,2605.5,2.57660062]
[1727727311970,1.24,2605.6,2605.5,2.57660062]
[1727727312155,1.62388,2605.6,2605.5,2.57660062]
[1727727312468,1.62388,2605.6,2605.5,2.57668833]
[1727727313658,1.62388,2605.6,2605.5,2.96057833]
[1727727314667,1.62388,2605.6,2605.5,0.99417023]
[1727727314859,1.62388,2605.6,2605.5,1.37806023]
[1727727320068,1.62388,2605.6,2605.5,2.96178328]
[1727727321065,5.46148,2605.6,2605.5,0.99417023]
[1727727321262,5.0776,2605.6,2605.4,0.99417023]
[1727727321569,3.08179,2605.5,2605.4,0.99859537]
[1727727321864,0.38391,2605.4,2605.3,0.99859537]
[1727727322057,1.08781,2605.4,2605.3,0.99859537]
[1727727322865,1.08781,2605.4,2605.3,3.07796526]
[1727727323258,1.08781,2605.4,2605.3,2.58355046]
[1727727323259,4.29561,2605.4,2605.3,2.58355046]
[1727727323466,4.29561,2605.4,2605.3,2.58355844]
[1727727324262,4.29561,2605.4,2605.3,0.99878083]
[1727727324670,3.9117,2605.4,2605.2,0.99878083]
[1727727324879,1.62392,2605.3,2605.2,0.99878083]
[1727727325170,1.62392,2605.3,2605.1,1.38273083]
[1727727325171,0.38394,2605.2,2605.1,1.38273083]
[1727727325475,0.38394,2605.2,2605.1,0.38395]
[1727727325670,0.38395,2605.1,2605.0,0.99878083]
[1727727325864,6.24395,2605.1,2605.0,0.99878083]
[1727727326069,5.86,2605.1,2604.9,1.38275083]
[1727727326274,1.08497,2605.0,2604.9,1.38275083]
[1727727326872,1.08497,2605.0,2604.9,0.99878083]
[1727727327065,0.701,2605.0,2604.9,1.38276083]
[1727727327270,4.5402,2605.0,2604.8,0.99878083]
[1727727327468,1.62398,2604.9,2604.8,0.99878083]
[1727727327767,0.384,2604.8,2604.7,0.99878083]
[1727727327974,1.24,2604.8,2604.7,1.38279083]
[1727727328283,1.24,2604.8,2604.6,4.70099563]
[1727727328284,1.24,2604.8,2604.6,4.59060083]
[1727727328476,0.7556,2604.7,2604.6,4.59061083]
[1727727328671,0.701,2605.0,2604.9,0.38398]
[1727727328872,1.941,2605.0,2604.9,0.38398]
[1727727329271,5.7802,2605.0,2604.9,0.38398]
[1727727330178,1.941,2605.0,2604.9,0.38398]
[1727727331677,1.941,2605.0,2604.9,1.09858]
[1727727332475,3.2078,2605.1,2605.0,0.38397]
[1727727333981,3.2078,2605.5,2605.4,0.38391]
[1727727334172,3.2078,2606.2,2606.1,0.38381]
[1727727334671,1.24,2606.7,2606.4,0.38376]
[1727727334871,1.24,2606.7,2606.3,0.38376]
[1727727335073,1.24,2606.5,2606.2,0.38378]
[1727727335481,1.24,2606.5,2606.3,0.38378]
[1727727336072,1.24,2606.5,2606.3,0.38377]
[1727727338079,1.24,2606.5,2606.1,1.4497]
[1727727338286,3.2078,2606.6,2606.2,1.24]
[1727727338485,1.24,2607.0,2606.5,1.24]
[1727727338689,1.24,2607.0,2606.7,0.38372]
[1727727339290,1.24,2607.0,2606.8,0.7142]
[1727727339595,1.62368,2607.0,2606.8,0.7142]
[1727727339774,1.24,2607.0,2606.8,0.7142]
[1727727340483,1.62368,2607.0,2606.8,0.7142]
[1727727341787,1.24,2607.0,2606.8,0.7142]
[1727727341995,0.38369,2606.9,2606.8,0.7142]
[1727727344394,4.4478,2607.0,2606.8,0.7142]
[1727727344599,4.83148,2607.0,2606.8,0.7142]
[1727727345291,0.38369,2606.9,2606.8,0.7142]
[1727727346198,4.4478,2607.0,2606.8,0.7142]
[1727727346503,0.3837,2606.9,2606.6,1.09183]
[1727727346802,1.62373,2606.7,2606.5,0.7373]
[1727727346996,1.62373,2606.6,2606.5,0.7373]
[1727727347192,1.24,2606.6,2606.5,0.7373]
[1727727347694,0.38375,2606.5,2606.3,0.38377]
[1727727347891,1.24,2606.4,2606.3,0.38377]
[1727727348493,1.62377,2606.4,2606.2,1.07509]
[1727727348704,0.38378,2606.3,2606.2,1.07509]
[1727727348896,1.62377,2606.4,2606.2,1.07509]
[1727727349095,0.38378,2606.3,2606.2,1.07509]
[1727727349401,1.24,2606.4,2606.2,1.07509]
[1727727349604,0.38379,2606.3,2606.1,1.1211]
[1727727349806,1.62376,2606.4,2606.2,0.38378]
[1727727350298,0.38378,2606.3,2606.1,1.12109]
[1727727350502,0.38378,2606.3,2606.1,0.7373]
[1727727350698,0.38378,2606.3,2606.1,1.1211]
[1727727351210,1.62377,2606.4,2606.2,0.38378]
[1727727351595,1.62377,2606.4,2606.1,0.7373]
[1727727352207,1.62377,2606.4,2606.2,0.38378]
[1727727353802,1.62377,2606.4,2606.3,0.38378]
[1727727354112,4.83157,2606.4,2606.3,0.38378]
[1727727354310,4.4478,2606.4,2606.3,0.38378]
[1727727354810,4.83157,2606.4,2606.3,0.38378]
[1727727355405,4.4478,2606.4,2606.3,0.38378]
[1727727356812,3.2078,2606.4,2606.3,0.38378]
[1727727357202,1.24,2606.8,2606.3,5.0768]
[1727727357399,1.8718,2606.9,2606.7,0.38371]
[1727727357999,0.7604,2606.9,2606.8,0.3837]
[1727727358210,0.7604,2606.9,2606.5,0.95938]
[1727727358211,4.4478,2607.0,2606.5,0.7578]
[1727727358410,4.4478,2607.0,2606.9,0.38369]
[1727727358411,3.2078,2607.0,2606.9,0.38369]
[1727727362817,3.2078,2607.0,2606.9,5.45969]
[1727727364428,0.7272,2607.5,2606.9,11.45969]
[1727727364719,3.59138,2607.7,2607.3,1.24]
[1727727364909,3.2078,2607.7,2607.6,1.62359]
[1727727365309,3.2078,2608.0,2607.9,0.38353]
[1727727366319,3.2078,2608.0,2607.8,1.24]
[1727727366522,3.2078,2608.0,2607.9,0.38354]
[1727727366710,3.2078,2608.0,2607.8,0.38354]
[1727727367024,3.59133,2608.0,2607.8,0.38354]
[1727727367416,3.2078,2608.0,2607.8,0.38354]
[1727727367613,3.2078,2608.0,2607.9,0.38354]
[1727727368238,4.40253,2608.3,2608.1,0.38351]
[1727727368239,0.7538,2608.3,2608.1,0.38351]
[1727727368411,1.13729,2608.3,2608.1,0.38351]
[1727727368723,1.13729,2608.3,2608.0,0.38352]
[1727727368913,0.3835,2608.2,2608.0,0.38352]
[1727727369215,0.7538,2608.3,2607.7,3.64892]
[1727727369216,1.13729,2608.3,2607.7,3.64892]
[1727727369421,1.13729,2608.3,2608.1,0.38351]
[1727727369619,0.7538,2608.3,2607.7,3.64892]
[1727727369817,1.13729,2608.3,2608.1,0.3835]
[1727727370221,0.7538,2608.3,2608.2,0.3835]
[1727727372014,0.7538,2608.3,2607.8,0.95889]
[1727727372214,0.7538,2608.3,2608.2,0.3835]
[1727727372615,1.13729,2608.3,2608.1,0.3835]
[1727727373210,1.13729,2608.3,2608.2,0.3835]
[1727727373211,0.7538,2608.3,2608.2,0.3835]
[1727727373718,1.13728,2608.3,2608.1,0.3835]
[1727727374223,1.13728,2608.3,2608.2,0.3835]
[1727727374423,1.13728,2608.3,2608.1,0.3835]
[1727727374624,0.3835,2608.2,2608.1,0.3835]
[1727727374825,0.7538,2608.3,2608.2,0.3835]
[1727727376224,3.2078,2608.4,2608.3,0.38348]
[1727727376519,3.2078,2608.8,2608.7,0.38342]
[1727727377025,3.2078,2608.8,2608.4,0.717]
[1727727377215,3.2078,2608.8,2608.6,0.38343]
[1727727377424,3.59122,2608.8,2608.6,0.38343]
[1727727378520,3.2078,2608.8,2608.4,0.717]
[1727727378715,3.59121,2608.8,2608.6,0.38343]
[1727727379229,3.2078,2608.8,2608.5,0.7588]
[1727727379528,3.59121,2608.8,2608.6,0.38343]
[1727727380122,3.2078,2608.8,2608.5,0.7588]
[1727727380531,3.2078,2608.8,2608.6,0.38343]
[1727727381230,3.2078,2608.8,2608.6,0.38342]
[1727727381429,3.2078,2608.8,2608.5,0.7588]
[1727727381614,3.59122,2608.8,2608.6,0.38343]
[1727727381814,3.59122,2608.8,2608.5,1.14224]
[1727727382030,3.59121,2608.8,2608.6,0.38344]
[1727727382324,3.59121,2608.8,2608.5,0.7588]
[1727727382515,3.59121,2608.8,2608.5,1.14224]
[1727727382721,3.2078,2608.8,2608.5,0.7588]
[1727727382921,3.2078,2608.8,2608.4,0.717]
[1727727382922,0.38345,2608.5,2608.4,0.717]
[1727727383217,3.2078,2608.5,2607.4,3.2078]
[1727727383416,2.69,2608.6,2607.4,3.2078]
[1727727383417,0.38356,2607.8,2607.7,0.7003]
[1727727383623,2.69,2608.0,2607.4,3.9497]
[1727727383929,4.16662,2608.1,2607.3,0.7003]
[1727727383930,0.3836,2607.5,2607.3,0.7003]
[1727727384120,3.2078,2607.5,2607.0,1.12556]
[1727727384322,2.69,2607.8,2607.1,3.2078]
[1727727384323,2.69,2607.6,2607.1,3.2078]
[1727727384535,3.5914,2607.5,2607.1,3.59145]
[1727727384821,2.69,2607.6,2607.1,3.2078]
[1727727384822,0.38362,2607.4,2607.1,3.2078]
[1727727385023,0.7413,2607.4,2607.1,3.2078]
[1727727385217,0.38364,2607.3,2606.9,4.90098]
[1727727385616,1.12492,2607.4,2607.0,0.38367]
[1727727385821,0.7413,2607.4,2607.0,0.38367]
[1727727386223,1.12492,2607.4,2607.0,0.38367]
[1727727387320,1.12492,2607.4,2606.9,3.77398]
[1727727387321,0.38363,2607.3,2606.9,3.77398]
[1727727387534,0.7413,2607.4,2606.9,0.7003]
[1727727387723,0.7413,2607.4,2606.7,0.7419]
[1727727387724,3.2078,2607.2,2606.7,0.7419]
[1727727387918,0.38365,2607.2,2606.8,0.3837]
[1727727388122,0.38367,2607.1,2606.7,1.12561]
[1727727389021,3.59145,2607.2,2606.8,0.3837]
[1727727389226,0.38366,2607.1,2606.8,0.3837]
[1727727389420,3.59145,2607.2,2606.7,3.4319]
[1727727389621,0.38366,2607.1,2606.8,0.3837]
[1727727389827,3.59145,2607.2,2606.8,0.3837]
[1727727390425,3.2078,2607.2,2606.9,0.38368]
[1727727390635,3.59145,2607.2,2606.8,0.38369]
[1727727391632,3.2078,2607.2,2606.8,0.38369]
[1727727391929,3.2078,2607.2,2606.5,3.2078]
[1727727392122,2.69,2607.0,2606.5,3.2078]
[1727727392326,3.07368,2607.0,2606.6,0.38373]
[1727727392634,1.13729,2606.9,2606.5,3.59154]
[1727727392823,0.3837,2606.8,2606.5,3.59154]
[1727727393332,1.1373,2606.9,2606.6,0.38373]
[1727727393832,0.38371,2606.8,2606.6,0.38372]
[1727727394035,0.38371,2606.8,2606.5,3.2078]
[1727727394233,0.7536,2606.9,2606.6,0.38373]
[1727727394529,1.1373,2606.9,2606.6,0.38373]
[1727727395129,0.38371,2606.8,2606.6,0.38373]
[1727727395638,0.6935,2607.1,2606.6,6.526]
[1727727395827,0.6935,2607.1,2607.0,0.38367]
[1727727396133,1.07717,2607.1,2606.9,0.38368]
[1727727396334,0.6935,2607.1,2606.9,0.38368]
[1727727396535,0.6935,2607.1,2606.7,0.7042]
[1727727396732,0.6935,2607.1,2607.0,0.38367]
[1727727397830,0.6935,2607.1,2606.9,0.38368]
[1727727399430,0.6935,2607.1,2607.0,0.38367]
[1727727399731,0.6935,2607.1,2606.7,0.7042]
[1727727399925,0.6935,2607.1,2606.9,0.38368]
[1727727401437,0.6935,2607.1,2606.7,0.7042]
[1727727401641,0.6935,2607.1,2607.0,0.38367]
[1727727401939,0.6935,2607.1,2606.9,0.38368]
[1727727402538,1.07716,2607.1,2606.9,0.38368]
[1727727402734,1.07716,2607.1,2606.7,0.7042]
[1727727403038,1.07716,2607.1,2606.9,0.38369]
[1727727404134,0.6935,2607.1,2606.7,0.7042]
[1727727404341,0.6935,2607.1,2606.9,0.38367]
[1727727405142,1.07716,2607.1,2606.9,0.38368]
[1727727405338,1.07716,2607.1,2606.7,0.7042]
[1727727405538,1.07716,2607.1,2606.9,0.38368]
[1727727405940,0.6935,2607.1,2606.9,0.38368]
[1727727406347,1.07716,2607.1,2606.9,0.38368]
[1727727406941,0.6935,2607.1,2606.7,0.7042]
[1727727407243,1.07716,2607.1,2606.9,0.38369]
[1727727408039,0.38368,2607.0,2606.8,0.3837]
[1727727408441,1.3996,2607.1,2606.8,0.3837]
[1727727408636,1.78327,2607.1,2606.8,0.3837]
[1727727409043,1.78327,2607.1,2606.6,2.69]
[1727727409044,0.3837,2606.8,2606.6,0.38373]
[1727727409349,0.7636,2606.7,2606.4,0.7422]
[1727727409559,0.7636,2606.7,2606.3,1.08187]
[1727727409560,0.38375,2606.5,2606.3,1.08187]
[1727727410248,0.38375,2606.5,2606.2,3.2078]
[1727727410445,0.38379,2606.2,2606.1,0.7343]
[1727727410647,0.38379,2606.3,2606.1,1.11811]
[1727727410842,0.38379,2606.2,2606.1,1.11811]
[1727727411142,1.14389,2606.3,2606.1,1.11811]
[1727727412649,1.14389,2606.3,2606.1,0.7343]
[1727727412950,0.7601,2606.3,2606.1,1.1181]
[1727727413268,0.38382,2606.1,2605.9,0.38383]
[1727727413454,0.38382,2606.0,2605.9,0.38383]
[1727727413747,0.38382,2606.0,2605.7,0.6969]
[1727727413748,0.38385,2605.8,2605.7,0.6969]
[1727727413950,1.08885,2605.9,2605.7,1.08076]
[1727727414148,1.08885,2605.9,2605.7,0.6969]
[1727727414149,0.705,2605.9,2605.7,0.6969]
[1727727414346,0.38385,2605.8,2605.7,0.6969]
[1727727414847,0.38385,2605.8,2605.6,0.38387]
[1727727415045,1.08115,2605.8,2605.6,0.38387]
[1727727415246,0.6973,2605.8,2605.6,0.38387]
[1727727415453,0.38387,2605.7,2605.6,0.38387]
[1727727415840,3.77116,2605.8,2605.6,0.38387]
[1727727416043,3.77116,2605.8,2605.5,3.9106]
[1727727416044,0.6973,2605.8,2605.5,3.9106]
[1727727416243,7.3878,2606.3,2606.1,0.38381]
[1727727416545,7.3878,2606.3,2606.1,0.3838]
[1727727416546,3.59159,2606.3,2606.1,0.3838]
[1727727416745,3.59159,2606.3,2606.2,0.38379]
[1727727416746,7.42839,2606.3,2606.2,0.38379]
[1727727417146,7.42839,2606.3,2606.1,0.38379]
[1727727417453,7.42839,2606.3,2605.6,3.64971]
[1727727417454,0.3838,2606.2,2606.0,0.38382]
[1727727417652,3.59158,2606.3,2606.1,0.38381]
[1727727418148,7.42838,2606.3,2606.1,0.38381]
[1727727418348,7.42838,2606.3,2606.0,0.38381]
[1727727418649,3.2078,2606.3,2606.0,0.38381]
[1727727418853,0.38379,2606.2,2606.0,0.38381]
[1727727419155,3.2078,2606.3,2605.7,0.95967]
[1727727419558,3.2078,2606.3,2606.1,0.38379]
[1727727419761,3.2078,2606.3,2605.7,0.95967]
[1727727420050,3.59158,2606.3,2606.0,0.38381]
[1727727420353,3.59158,2606.3,2605.7,0.95967]
[1727727420551,3.59158,2606.3,2606.0,0.38381]
[1727727420743,3.2078,2606.3,2606.0,0.38381]
[1727727420947,3.59159,2606.3,2606.0,0.38381]
[1727727421348,3.59159,2606.3,2606.1,0.3838]
[1727727421547,7.42839,2606.3,2606.1,0.3838]
[1727727421952,0.6973,2606.6,2606.2,3.8368]
[1727727422249,4.18,2606.9,2606.3,2.69]
[1727727422450,0.6939,2606.9,2606.8,0.3837]
[1727727422956,0.38366,2607.1,2606.9,0.38368]
[1727727423157,3.59145,2607.2,2606.9,0.38368]
[1727727423453,3.59145,2607.2,2606.7,0.7025]
[1727727423454,3.2078,2607.2,2606.7,0.7025]
[1727727423656,3.59145,2607.2,2607.0,0.38367]
[1727727423846,3.2078,2607.2,2606.8,0.7498]
[1727727424052,3.2078,2607.2,2607.0,0.38366]
[1727727425148,3.2078,2607.2,2606.8,0.7498]
[1727727425348,3.2078,2607.2,2607.1,0.38366]
[1727727425956,3.59145,2607.2,2607.0,0.38366]
[1727727426256,3.59145,2607.2,2606.8,0.7498]
[1727727426850,3.59145,2607.2,2607.0,0.38366]
[1727727427051,3.59145,2607.2,2607.1,0.38366]
[1727727427251,3.59145,2607.2,2607.0,0.38366]
[1727727428160,3.59145,2607.2,2606.9,0.38369]
[1727727428357,3.59145,2607.2,2606.8,0.7498]
[1727727428552,3.2078,2607.2,2607.0,0.38367]
[1727727428752,3.59146,2607.2,2607.0,0.38367]
[1727727429460,3.2078,2607.2,2606.8,0.7498]
[1727727429661,0.38371,2606.8,2606.5,0.38375]
[1727727429861,0.7095,2606.7,2606.6,0.38373]
[1727727430562,1.09322,2606.7,2606.6,0.38373]
[1727727430860,0.7095,2606.7,2606.6,0.38373]
[1727727432454,1.1455,2606.9,2606.8,0.3837]
[1727727432654,1.1455,2606.9,2606.5,0.95938]
[1727727432855,1.1455,2606.9,2606.7,0.38371]
[1727727433348,1.14549,2606.9,2606.4,5.2872]
[1727727433553,1.14549,2606.9,2606.5,0.95938]
[1727727433748,0.7618,2606.9,2606.5,0.95938]
[1727727434048,3.07368,2607.0,2606.4,4.1672]
[1727727434049,0.7043,2607.1,2607.0,0.38367]
[1727727434257,0.7561,2607.5,2607.3,0.38362]
[1727727434453,1.4604,2607.5,2607.4,0.38361]
[1727727435061,1.84401,2607.5,2607.3,0.38362]
[1727727435259,1.4604,2607.5,2607.4,0.38361]
[1727727435655,1.4604,2607.5,2607.0,5.64107]
[1727727435656,1.844,2607.5,2607.3,0.38362]
[1727727435955,1.844,2607.5,2607.0,5.64107]
[1727727435956,1.4604,2607.5,2607.4,0.38361]
[1727727436157,1.844,2607.5,2607.3,0.38362]
[1727727436561,1.4604,2607.5,2607.0,5.64107]
[1727727436760,1.84401,2607.5,2607.3,0.38363]
[1727727438764,1.84401,2607.5,2607.0,5.64107]
[1727727438765,1.4604,2607.5,2607.0,5.64107]
[1727727438967,1.4604,2607.5,2607.3,0.38362]
[1727727438968,1.844,2607.5,2607.3,0.38362]
[1727727439160,1.844,2607.5,2607.0,5.64107]
[1727727439161,1.4604,2607.5,2607.0,5.64107]
[1727727439462,1.844,2607.5,2607.4,0.38361]
[1727727439655,1.844,2607.5,2607.3,0.38363]
[1727727440359,0.38361,2607.4,2607.3,0.38363]
[1727727440860,0.38361,2607.4,2607.2,0.38363]
[1727727441260,1.4604,2607.5,2607.2,0.38363]
[1727727441466,1.4604,2607.5,2607.0,1.85776]
[1727727441467,0.38365,2607.2,2607.0,1.85776]
[1727727442064,2.69,2607.2,2607.0,0.7281]
[1727727442264,2.69,2607.2,2606.9,0.38368]
[1727727442565,2.69,2607.2,2606.7,3.2078]
[1727727442771,2.69,2607.2,2607.0,0.38367]
[1727727442772,0.38366,2607.1,2607.0,0.38367]
[1727727442967,3.07365,2607.2,2607.0,0.38367]
[1727727443279,3.07366,2607.2,2607.0,0.38367]
[1727727443478,3.07366,2607.2,2606.7,4.1671]
[1727727443681,0.38364,2607.2,2607.1,0.38365]
[1727727444079,3.836,2607.2,2607.1,0.38365]
[1727727444384,3.836,2607.2,2606.7,3.2078]
[1727727444583,0.38365,2607.2,2607.1,0.38365]
[1727727444985,4.21965,2607.2,2607.1,0.38365]
[1727727445476,4.21965,2607.2,2607.1,0.38366]
[1727727446272,3.836,2607.2,2606.7,4.1671]
[1727727446477,0.38366,2607.1,2607.0,0.38367]
[1727727446878,0.38366,2607.2,2606.8,0.3837]
[1727727447178,0.7392,2607.0,2606.9,0.38369]
[1727727454087,1.12287,2607.0,2606.9,0.38369]
[1727727454585,0.7392,2607.0,2606.9,0.38369]
[1727727463191,0.7561,2607.5,2607.2,0.38364]
[1727727463389,3.2078,2607.6,2607.4,0.38361]
[1727727463390,3.5914,2607.6,2607.4,0.38361]
[1727727463591,3.5914,2607.6,2607.3,1.4512]
[1727727463592,3.2078,2607.6,2607.3,1.4512]
[1727727463786,3.07361,2607.5,2607.3,1.83482]
[1727727464093,2.69,2607.5,2607.4,0.38361]
[1727727464592,3.2078,2607.6,2607.5,0.3836]
[1727727464797,0.7143,2607.7,2607.6,0.38359]
[1727727464995,0.7143,2607.7,2607.5,0.38359]
[1727727465206,0.7143,2607.7,2607.6,0.38359]
[1727727465492,3.2078,2608.0,2607.9,0.38354]
[1727727465898,3.2078,2608.0,2607.8,0.38355]
[1727727466088,3.2078,2608.0,2607.8,1.10225]
[1727727467693,3.2078,2608.0,2607.8,0.7187]
[1727727468100,0.7373,2607.9,2607.8,0.7187]
[1727727468695,0.7373,2607.9,2607.8,1.10226]
[1727727469097,0.7373,2607.9,2607.8,0.7187]
[1727727469599,3.2078,2608.0,2607.9,0.38354]
[1727727471901,3.2078,2608.3,2607.8,0.7187]
[1727727472104,3.2078,2608.3,2608.0,0.38351]
[1727727472787,3.2078,2608.3,2607.8,0.7187]
[1727727473204,3.2078,2608.3,2608.0,0.38351]
[1727727474005,3.2078,2608.3,2608.1,0.38351]
[1727727474393,3.0735,2608.2,2607.9,0.38353]
[1727727474596,2.69,2608.2,2607.7,0.7087]
[1727727474800,1.5171,2608.1,2607.7,0.7087]
[1727727474990,0.7386,2608.0,2607.8,0.38355]
[1727727475394,1.12214,2608.0,2607.7,1.09226]
[1727727475803,1.12214,2608.0,2607.4,1.8355]
[1727727475804,2.69,2607.8,2607.5,0.38359]
[1727727475992,3.07356,2607.8,2607.5,0.38359]
[1727727476195,3.07356,2607.8,2607.4,0.7195]
[1727727476196,0.7525,2607.7,2607.6,0.38359]
[1727727476901,1.12213,2608.0,2607.8,0.38355]
[1727727477408,0.7386,2608.0,2607.9,0.38354]
[1727727477603,0.7525,2608.2,2608.1,0.38351]
[1727727477906,0.7525,2608.2,2608.0,0.38351]
[1727727478497,0.7525,2608.2,2607.7,0.7464]
[1727727478807,0.7525,2608.2,2608.1,0.38351]
[1727727479696,3.2078,2608.3,2607.7,5.1329]
[1727727479697,3.2078,2608.3,2608.2,0.3835]
[1727727480097,3.2078,2608.3,2608.0,0.7374]
[1727727480405,3.2078,2608.3,2608.2,0.3835]
[1727727480998,3.2078,2608.3,2608.1,0.7344]
[1727727481201,3.2078,2608.3,2608.0,0.7374]
[1727727481202,0.3835,2608.2,2608.0,0.7374]
[1727727481704,0.3835,2608.2,2608.1,0.38351]
[1727727482007,3.2078,2608.3,2608.1,0.38351]
[1727727482200,3.2078,2608.3,2607.6,4.16677]
[1727727482201,2.69,2608.2,2607.6,3.2078]
[1727727482905,2.69,2608.2,2607.9,0.38354]
[1727727482906,0.38352,2608.1,2607.9,0.38354]
[1727727483112,2.69,2608.2,2607.6,3.2078]
[1727727483298,1.14733,2608.0,2607.8,0.38355]
[1727727483603,1.14733,2608.0,2607.6,3.2078]
[1727727483604,1.14733,2608.0,2607.7,0.38357]
[1727727483805,1.14733,2608.0,2607.8,0.38355]
[1727727484200,0.7638,2608.0,2607.8,0.38355]
[1727727484410,0.7638,2608.0,2607.8,0.38354]
[1727727484997,1.14733,2608.0,2607.8,0.38354]
[1727727485295,0.7638,2608.0,2607.9,0.38354]
[1727727485696,3.2078,2608.3,2608.1,0.38351]
[1727727485897,3.2078,2608.3,2607.8,0.9589]
[1727727486298,3.59129,2608.3,2608.1,0.38351]
[1727727486703,0.3835,2608.2,2608.1,0.38351]
[1727727487401,3.2078,2608.3,2608.0,1.12132]
[1727727487601,0.38351,2608.1,2608.0,0.7378]
[1727727487902,0.38351,2608.1,2607.9,0.7623]
[1727727487903,0.38351,2608.1,2607.9,0.38353]
[1727727488104,2.69,2608.2,2607.9,0.38353]
[1727727488105,0.6967,2608.0,2607.9,0.38353]
[1727727488910,1.08023,2608.0,2607.9,0.38353]
[1727727489211,0.6967,2608.0,2607.9,0.38353]
[1727727489401,0.6967,2608.0,2607.8,0.38354]
[1727727489603,1.08024,2608.0,2607.9,0.38354]
[1727727490311,3.2078,2608.3,2607.6,5.7703]
[1727727490503,1.13891,2608.2,2608.1,0.38351]
[1727727490698,0.38351,2608.1,2608.0,0.38352]
[1727727491409,1.1389,2608.2,2608.1,0.38351]
[1727727491912,1.13891,2608.2,2608.1,0.38351]
[1727727492607,0.7554,2608.2,2607.7,0.9589]
[1727727492802,0.7554,2608.2,2607.6,4.6573]
[1727727493013,0.38355,2607.9,2607.8,0.38355]
[1727727493504,0.7172,2608.0,2607.6,4.6573]
[1727727493706,0.38357,2607.7,2607.6,5.04088]
[1727727493916,1.09176,2607.8,2607.7,0.38357]
[1727727494513,1.09176,2607.8,2607.6,5.04087]
[1727727494514,0.38357,2607.7,2607.6,5.04087]
[1727727494905,1.09176,2607.8,2607.7,0.38357]
[1727727495107,0.38357,2607.7,2607.6,5.04087]
[1727727495411,0.38357,2607.7,2607.6,5.04088]
[1727727495716,1.09176,2607.8,2607.6,0.7378]
[1727727495908,1.09176,2607.8,2607.7,0.38357]
[1727727496818,0.7082,2607.8,2607.7,0.38357]
[1727727497017,2.69,2608.2,2607.7,0.95893]
[1727727497211,1.13732,2608.1,2608.0,0.38352]
[1727727497511,1.13732,2608.1,2607.7,0.95893]
[1727727497512,0.7538,2608.1,2607.7,0.95893]